fUSD/lending_fUSD_20250526
["ID","MTS","AMOUNT","RATE_DAILY","PERIOD"]
[362380279,1748235038118,-150.0,0.0001978,2]
[362380280,1748235038128,-2002.963,0.0001978,2]
[362380281,1748235038137,-1234.55021643,0.0001978,2]
[362380282,1748235038150,-3171.27395383,0.0001978,2]
[362380283,1748235038159,-500.0,0.0001978,2]
[362380284,1748235038169,-150.0,0.0001978,2]
[362380285,1748235038178,-500.0,0.0001978,2]
[362380286,1748235038188,-1285.07760774,0.00019788,2]
[362380287,1748235038197,-178.49048929,0.00019788,2]
[362380288,1748235038206,-170.88170627,0.00019788,2]
[362380289,1748235038216,-453.18823129,0.00019793,2]
[362380290,1748235038227,-471.10722864,0.00019793,2]
[362380291,1748235038242,-2615.92995068,0.00019793,2]
[362380303,1748235039977,-576.2584,0.0001978,2]
[362380304,1748235039986,-865.59875965,0.00019793,2]
[362380305,1748235039996,-558.14284035,0.000198,7]
[362380306,1748235040080,-241.85715965,0.000198,7]
[362380307,1748235040090,-1285.07760769,0.000198,2]
[362380308,1748235040099,-296.4771216,0.00019807,2]
[362380309,1748235040136,-4109.34704866,0.00019807,2]
[362380310,1748235040146,-208.66170482,0.00019807,2]
[362380311,1748235040155,-500.0,0.00019807,2]
[362380312,1748235040165,-150.0,0.00019807,2]
[362380313,1748235040174,-500.0,0.00019807,2]
[362380314,1748235040183,-1285.07760769,0.00019813,2]
[362380315,1748235040193,-4405.82417026,0.0001982,2]
[362380316,1748235040202,-1285.07760769,0.00019825,2]
[362380317,1748235040211,-4405.82417026,0.00019833,2]
[362380318,1748235040220,-500.0,0.00019835,2]
[362380319,1748235040230,-150.0,0.00019835,2]
[362380320,1748235040240,-500.0,0.00019835,2]
[362380321,1748235040249,-1285.07760769,0.00019838,2]
[362380322,1748235040259,-178.49048928,0.00019844,2]
[362380323,1748235040268,-4405.82417026,0.00019847,2]
[362380324,1748235040278,-1285.07760769,0.0001985,2]
[362380325,1748235040287,-4405.82417026,0.0001986,2]
[362380326,1748235040297,-500.0,0.00019862,2]
[362380327,1748235040306,-152.31982268,0.00019862,2]
[362380328,1748235040315,-152.60986817,0.00019862,2]
[362380329,1748235040325,-1285.07760769,0.00019863,2]
[362380330,1748235040334,-500.0,0.00019873,2]
[362380331,1748235040343,-500.0,0.00019873,2]
[362380332,1748235040353,-500.0,0.00019873,2]
[362380333,1748235040364,-500.0,0.00019873,2]
[362380334,1748235040373,-500.0,0.00019873,2]
[362380335,1748235040383,-500.0,0.00019873,2]
[362380336,1748235040392,-321.97702763,0.00019873,2]
[362380337,1748235040401,-4405.82417026,0.00019873,2]
[362380338,1748235040410,-1285.07760769,0.00019875,2]
[362380339,1748235040420,-500.0,0.00019879,2]
[362380340,1748235040429,-390.46060419,0.00019879,2]
[362380341,1748235040438,-413.57915801,0.00019879,2]
[362380342,1748235040448,-500.0,0.00019879,2]
[362380343,1748235040457,-500.0,0.00019879,2]
[362380344,1748235040466,-500.0,0.00019879,2]
[362380345,1748235040476,-500.0,0.00019879,2]
[362380346,1748235040486,-500.0,0.00019879,2]
[362380347,1748235040495,-500.0,0.00019879,2]
[362380348,1748235040505,-420.0,0.00019879,2]
[362380349,1748235040515,-342.86911917,0.00019879,2]
[362380350,1748235040525,-443.44922869,0.00019879,2]
[362380351,1748235040534,-500.0,0.00019879,2]
[362380352,1748235040544,-500.0,0.00019879,2]
[362380353,1748235040554,-420.0,0.00019879,2]
[362380354,1748235040564,-502.3895125,0.00019879,2]
[362380355,1748235040574,-420.0,0.00019879,2]
[362380356,1748235040583,-411.81452674,0.00019879,2]
[362380357,1748235040592,-420.0,0.00019879,2]
[362380358,1748235040602,-420.0,0.00019879,2]
[362380359,1748235040612,-434.04335348,0.00019879,2]
[362380360,1748235040622,-420.0,0.00019879,2]
[362380361,1748235040631,-448.26066792,0.00019879,2]
[362380362,1748235040641,-468.67081381,0.00019879,2]
[362380363,1748235040650,-460.81018687,0.00019879,2]
[362380364,1748235040659,-425.54716039,0.00019879,2]
[362380365,1748235040668,-442.76885021,0.00019879,2]
[362380366,1748235040678,-420.0,0.00019879,2]
[362380367,1748235040687,-569.25791759,0.00019879,2]
[362380368,1748235040696,-436.96833602,0.00019879,2]
[362380369,1748235040706,-435.53839847,0.00019879,2]
[362380370,1748235040715,-447.79170111,0.00019879,2]
[362380371,1748235040725,-420.0,0.00019879,2]
[362380372,1748235040734,-519.56273902,0.00019879,2]
[362380373,1748235040744,-432.36711005,0.00019879,2]
[362380374,1748235040753,-420.0,0.00019879,2]
[362380375,1748235040763,-543.08,0.00019879,2]
[362380376,1748235040773,-420.0,0.00019879,2]
[362380377,1748235040783,-420.0,0.00019879,2]
[362380378,1748235040792,-420.0,0.00019879,2]
[362380379,1748235040801,-420.0,0.00019879,2]
[362380380,1748235040811,-420.0,0.00019879,2]
[362380381,1748235040820,-420.0,0.00019879,2]
[362380382,1748235040829,-420.0,0.00019879,2]
[362380383,1748235040839,-420.0,0.00019879,2]
[362380384,1748235040848,-420.0,0.00019879,2]
[362380385,1748235040858,-420.0,0.00019879,2]
[362380386,1748235040867,-444.23656186,0.00019879,2]
[362380387,1748235040876,-420.0,0.00019879,2]
[362380388,1748235040886,-552.95882816,0.00019879,2]
[362380389,1748235040895,-420.0,0.00019879,2]
[362380390,1748235040904,-504.33558024,0.00019879,2]
[362380391,1748235040914,-420.0,0.00019879,2]
[362380392,1748235040923,-420.0,0.00019879,2]
[362380393,1748235040933,-198.35,0.00019879,2]
[362380394,1748235040942,-420.0,0.00019879,2]
[362380395,1748235040952,-420.0,0.00019879,2]
[362380396,1748235040961,-492.35553471,0.00019879,2]
[362380397,1748235040971,-420.0,0.00019879,2]
[362380398,1748235040981,-420.0,0.00019879,2]
[362380399,1748235040991,-491.62110552,0.00019879,2]
[362380400,1748235041000,-420.89405291,0.00019879,2]
[362380401,1748235041010,-420.0,0.00019879,2]
[362380402,1748235041020,-420.0,0.00019879,2]
[362380403,1748235041030,-420.0,0.00019879,2]
[362380404,1748235041039,-420.0,0.00019879,2]
[362380405,1748235041049,-384.44402807,0.00019879,2]
[362380406,1748235041062,-420.0,0.00019879,2]
[362380407,1748235041072,-420.82211172,0.00019879,2]
[362380408,1748235041083,-504.83449712,0.00019879,2]
[362380409,1748235041093,-240.49,0.00019879,2]
[362380410,1748235041103,-114474.70734901,0.0001988,2]
[362380411,1748235041113,-495326.93664839,0.0001988,2]
[362380412,1748235041122,-4405.82417026,0.00019887,2]
[362380413,1748235041131,-1285.07760769,0.00019888,2]
[362380414,1748235041142,-153.302403,0.00019899,2]
[362380415,1748235041151,-153.302403,0.00019899,2]
[362380416,1748235041160,-153.302403,0.00019899,2]
[362380417,1748235041170,-166.077603,0.00019899,2]
[362380418,1748235041179,-166.077603,0.00019899,2]
[362380419,1748235041188,-914.0,0.000199,2]
[362380420,1748235041198,-914.0,0.000199,2]
[362380421,1748235041207,-914.0,0.000199,2]
[362380422,1748235041217,-914.0,0.000199,2]
[362380423,1748235041226,-914.0,0.000199,2]
[362380424,1748235041236,-914.0,0.000199,2]
[362380425,1748235041245,-914.0,0.000199,2]
[362380426,1748235041254,-914.0,0.000199,2]
[362380427,1748235041264,-914.0,0.000199,2]
[362380428,1748235041274,-914.0,0.000199,2]
[362380429,1748235041283,-169.44120148,0.000199,2]
[362380430,1748235041292,-751.115,0.000199,2]
[362380431,1748235041301,-230.02587706,0.000199,2]
[362380432,1748235041311,-780.34378878,0.000199,2]
[362380433,1748235041320,-3158.71540652,0.000199,2]
[362380434,1748235041329,-1285.07760769,0.000199,2]
[362380435,1748235041338,-1708.39,0.000199,2]
[362380436,1748235041347,-800.0,0.000199,7]
[362380437,1748235041357,-178.49048928,0.000199,2]
[362380438,1748235041366,-208.97031406,0.000199,2]
[362380439,1748235041375,-228.33216986,0.000199,2]
[362380440,1748235041384,-1603.36808534,0.000199,2]
[362380441,1748235041394,-4405.82417026,0.000199,2]
[362380442,1748235041403,-153.302403,0.00019921,2]
[362380443,1748235041412,-166.077603,0.00019921,2]
[362380444,1748235041421,-166.077603,0.00019921,2]
[362380445,1748235041431,-166.077604,0.00019921,2]
[362380446,1748235041440,-166.077603,0.00019921,2]
[362380447,1748235041449,-166.077603,0.00019921,2]
[362380448,1748235041459,-166.077603,0.00019921,2]
[362380449,1748235041469,-670.11353897,0.00019962,2]
[362380450,1748235041479,-500.0,0.00019973,2]
[362380451,1748235041488,-500.0,0.00019973,2]
[362380452,1748235041499,-500.0,0.00019973,2]
[362380453,1748235041509,-511.45224705,0.00019973,2]
[362380454,1748235041519,-500.0,0.00019973,2]
[362380455,1748235041529,-500.0,0.00019973,2]
[362380456,1748235041538,-500.0,0.00019973,2]
[362380457,1748235041549,-500.0,0.00019973,2]
[362380458,1748235041559,-499.98,0.0001998,2]
[362380459,1748235041569,-500.0,0.0001998,2]
[362380460,1748235041579,-500.0,0.0001998,2]
[362380461,1748235041588,-420.0,0.00019988,2]
[362380462,1748235041597,-153.302403,0.00019989,2]
[362380463,1748235041608,-432.98333033,0.00019989,2]
[362380464,1748235041617,-420.0,0.00019989,2]
[362380465,1748235041627,-420.0,0.00019989,2]
[362380466,1748235041637,-420.0,0.00019989,2]
[362380467,1748235041648,-420.0,0.00019989,2]
[362380468,1748235041658,-430.35623554,0.00019989,2]
[362380469,1748235041667,-441.26369032,0.00019989,2]
[362380470,1748235041678,-420.0,0.00019989,2]
[362380471,1748235041687,-442.13225717,0.00019989,2]
[362380472,1748235041697,-420.0,0.00019989,2]
[362380473,1748235041706,-389.78425462,0.00019989,2]
[362380474,1748235041715,-420.0,0.00019989,2]
[362380475,1748235041726,-420.0,0.00019989,2]
[362380476,1748235041736,-270.82752676,0.00019989,2]
[362380477,1748235041745,-428.93068064,0.00019989,2]
[362380478,1748235041755,-445.78996382,0.00019989,2]
[362380479,1748235041766,-420.0,0.00019989,2]
[362380480,1748235041775,-432.31350606,0.00019989,2]
[362380481,1748235041786,-420.0,0.00019989,2]
[362380482,1748235041795,-437.46020382,0.00019989,2]
[362380483,1748235041804,-420.0,0.00019989,2]
[362380484,1748235041814,-420.0,0.00019989,2]
[362380485,1748235041823,-420.0,0.00019989,2]
[362380486,1748235041832,-427.18045898,0.00019989,2]
[362380487,1748235041842,-174.05282742,0.00019989,2]
[362380488,1748235041851,-434.47766107,0.00019989,2]
[362380489,1748235041861,-414.35939277,0.00019989,2]
[362380490,1748235041870,-398.16574508,0.00019989,2]
[362380491,1748235041879,-439.06090431,0.00019989,2]
[362380492,1748235041888,-376.99,0.00019989,2]
[362380493,1748235041897,-447.9577405,0.00019989,2]
[362380494,1748235041907,-467.83887769,0.00019989,2]
[362380495,1748235041916,-161.14887414,0.0001999,2]
[362380496,1748235041926,-161.14887414,0.0001999,2]
[362380497,1748235041935,-161.14887414,0.0001999,2]
[362380498,1748235041944,-153.302403,0.00019992,2]
[362380499,1748235041953,-153.302403,0.00019992,2]
[362380500,1748235041962,-166.077603,0.00019992,2]
[362380501,1748235041971,-166.077603,0.00019992,2]
[362380502,1748235041980,-153.302403,0.00019993,2]
[362380503,1748235041989,-166.077603,0.00019993,2]
[362380504,1748235041998,-448.26639161,0.00019993,2]
[362380505,1748235042007,-449.91434779,0.00019993,2]
[362380506,1748235042016,-420.0,0.00019993,2]
[362380507,1748235042026,-436.05417063,0.00019993,2]
[362380508,1748235042035,-420.0,0.00019993,2]
[362380509,1748235042045,-424.70035031,0.00019993,2]
[362380510,1748235042055,-420.0,0.00019993,2]
[362380511,1748235042067,-428.08920239,0.00019993,2]
[362380512,1748235042076,-432.3573644,0.00019993,2]
[362380513,1748235042085,-427.75861846,0.00019993,2]
[362380514,1748235042094,-441.57861787,0.00019993,2]
[362380515,1748235042105,-432.42816972,0.00019993,2]
[362380516,1748235042115,-420.0,0.00019993,2]
[362380517,1748235042124,-420.0,0.00019993,2]
[362380518,1748235042135,-394.91013198,0.00019993,2]
[362380519,1748235042144,-420.0,0.00019993,2]
[362380520,1748235042153,-517.81715654,0.00019993,2]
[362380521,1748235042162,-260.78237454,0.00019993,2]
[362380522,1748235042171,-384.86827201,0.00019993,2]
[362380523,1748235042180,-303.92029762,0.00019993,2]
[362380524,1748235042190,-166.077603,0.00019993,2]
[362380525,1748235042200,-153.302403,0.00019994,2]
[362380526,1748235042211,-153.302403,0.00019994,2]
[362380527,1748235042221,-166.077603,0.00019994,2]
[362380528,1748235042230,-166.077603,0.00019994,2]
[362380529,1748235042239,-24592.44079957,0.00019994,2]
[362380530,1748235042248,-4032.5614177,0.00019995,2]
[362380531,1748235042257,-67816.7492621,0.00019995,2]
[362380532,1748235042266,-12804.3263894,0.00019995,2]
[362380533,1748235042275,-9359.1466406,0.00019995,2]
[362380534,1748235042285,-1559.5358484,0.00019995,2]
[362380535,1748235042294,-38257.5028671,0.00019995,2]
[362380536,1748235042304,-153.302403,0.00019997,2]
[362380537,1748235042313,-153.302403,0.00019998,2]
[362380538,1748235042322,-166.077603,0.00019998,2]
[362380539,1748235042331,-166.077603,0.00019998,2]
[362380540,1748235042340,-166.077604,0.00019998,2]
[362380541,1748235042350,-166.077603,0.00019998,2]
[362380542,1748235042359,-166.077603,0.00019998,2]
[362380543,1748235042368,-166.077603,0.00019998,2]
[362380544,1748235042377,-153.302403,0.00019999,2]
[362380545,1748235042386,-153.302403,0.00019999,2]
[362380546,1748235042395,-153.302403,0.00019999,2]
[362380547,1748235042404,-153.302403,0.00019999,2]
[362380548,1748235042413,-153.302403,0.00019999,2]
[362380549,1748235042422,-153.302403,0.00019999,2]
[362380550,1748235042431,-153.302403,0.00019999,2]
[362380551,1748235042441,-153.302403,0.00019999,2]
[362380552,1748235042450,-166.077603,0.00019999,2]
[362380553,1748235042459,-166.077603,0.00019999,2]
[362380554,1748235042468,-166.077603,0.00019999,2]
[362380555,1748235042478,-210.46197781,0.00019999,2]
[362380556,1748235042487,-420.0,0.00019999,2]
[362380557,1748235042496,-420.0,0.00019999,2]
[362380558,1748235042505,-420.0,0.00019999,2]
[362380559,1748235042514,-422.63850911,0.00019999,2]
[362380560,1748235042523,-421.61,0.00019999,2]
[362380561,1748235042532,-166.077603,0.00019999,2]
[362380562,1748235042541,-166.077603,0.00019999,2]
[362380563,1748235042550,-438.26418459,0.00019999,2]
[362380564,1748235042559,-476.66428966,0.00019999,2]
[362380565,1748235042569,-472.08068259,0.00019999,2]
[362380566,1748235042579,-420.0,0.00019999,2]
[362380567,1748235042590,-420.0,0.00019999,2]
[362380568,1748235042600,-452.52958551,0.00019999,2]
[362380569,1748235042611,-420.0,0.00019999,2]
[362380570,1748235042620,-490.03698538,0.00019999,2]
[362380571,1748235042630,-452.75041582,0.00019999,2]
[362380572,1748235042639,-340.8,0.00019999,2]
[362380573,1748235042649,-551.62493084,0.00019999,2]
[362380574,1748235042659,-420.0,0.00019999,2]
[362380575,1748235042669,-166.077603,0.00019999,2]
[362380576,1748235042679,-485.42044095,0.00019999,2]
[362380577,1748235042688,-352.17869603,0.00019999,2]
[362380578,1748235042698,-480.79142625,0.00019999,2]
[362380579,1748235042707,-434.94429697,0.00019999,2]
[362380580,1748235042716,-2000.0,0.00019999,2]
[362380581,1748235042725,-469.88889655,0.00019999,2]
[362380582,1748235042734,-428.00873656,0.00019999,2]
[362380583,1748235042744,-544.42306009,0.00019999,2]
[362380585,1748235042753,-476.30787986,0.00019999,2]
[362380586,1748235042763,-464.45100986,0.00019999,2]
[362380587,1748235042772,-420.0,0.00019999,2]
[362380588,1748235042782,-420.0,0.00019999,2]
[362380589,1748235042791,-420.0,0.00019999,2]
[362380590,1748235042801,-420.0,0.00019999,2]
[362380591,1748235042811,-420.0,0.00019999,2]
[362380592,1748235042820,-420.0,0.00019999,2]
[362380593,1748235042831,-420.0,0.00019999,2]
[362380594,1748235042841,-420.0,0.00019999,2]
[362380595,1748235042850,-503.7635892,0.00019999,2]
[362380596,1748235042859,-312.6779967,0.00019999,2]
[362380598,1748235042868,-420.0,0.00019999,2]
[362380600,1748235042878,-420.0,0.00019999,2]
[362380602,1748235042888,-420.0,0.00019999,2]
[362380603,1748235042897,-420.0,0.00019999,2]
[362380605,1748235042907,-420.0,0.00019999,2]
[362380607,1748235042916,-420.0,0.00019999,2]
[362380609,1748235042926,-420.0,0.00019999,2]
[362380612,1748235042935,-420.0,0.00019999,2]
[362380616,1748235042943,-420.0,0.00019999,2]
[362380618,1748235042953,-420.0,0.00019999,2]
[362380621,1748235042962,-381.57400027,0.00019999,2]
[362380625,1748235042971,-1003.6354,0.00019999,2]
[362380628,1748235042980,-488.58593458,0.00019999,2]
[362380630,1748235042990,-420.0,0.00019999,2]
[362380632,1748235042999,-420.0,0.00019999,2]
[362380634,1748235043008,-1577.0,0.00019999,2]
[362380635,1748235043017,-279.71252306,0.0002,2]
[362380636,1748235043026,-378008.76599276,0.0002,2]
[362380637,1748235043035,-22361.2330034,0.0002,2]
[362380638,1748235043050,-20417.78437678,0.0002,2]
[362380639,1748235043063,-824.5442263,0.0002,2]
[362380640,1748235043074,-257.93429136,0.0002,2]
[362380641,1748235043085,-512.577072,0.0002,2]
[362380642,1748235043096,-1037.99999985,0.0002,2]
[362380643,1748235043107,-3011.03993305,0.0002,2]
[362380644,1748235043151,-702.419245,0.0002,2]
[362380645,1748235043162,-26907.8,0.0002,2]
[362380646,1748235043173,-69869.71364802,0.0002,2]
[362380647,1748235043183,-396.0,0.0002,2]
[362380648,1748235043192,-4898.73776709,0.0002,2]
[362380649,1748235043201,-12971.0,0.0002,2]
[362380650,1748235043210,-310.0,0.0002,7]
[362380651,1748235043220,-400.0,0.0002,2]
[362380652,1748235043229,-4062.30380993,0.0002,2]
[362380653,1748235043239,-2026.94,0.0002,2]
[362380654,1748235043248,-34425.3898794,0.0002,2]
[362380655,1748235043259,-1300.0,0.0002,2]
[362380656,1748235043270,-6384.83684999,0.0002,2]
[362380657,1748235043281,-207889.77327061,0.0002,2]
[362380658,1748235043290,-8752.5258579,0.0002,2]
[362380659,1748235043305,-649.32987711,0.0002,2]
[362380672,1748235045965,-431.22961645,0.0002,2]
[362380673,1748235045975,-5311.19311934,0.0002,2]
[362380674,1748235046021,-13229.93881738,0.0002,2]
[362380675,1748235046132,-600.75,0.0002,2]
[362380676,1748235046145,-674.43020452,0.0002,2]
[362380677,1748235046186,-4815.41717754,0.0002,2]
[362380678,1748235046198,-47675.67605191,0.0002,2]
[362380680,1748235115000,250.0,0.00015,2]
[362380683,1748235212657,-300.0,0.00017,2]
[362380684,1748235448695,258.72665337,0.00016913,2]
[362380685,1748235473285,1276.72,0.00016623,2]
[362380726,1748235783207,311.37,0.00013699,2]
[362380729,1748235842152,204.92,0.00016712,2]
[362380730,1748235887935,7795.0,0.00017,7]
[362380738,1748236091507,208.0,0.00016282,2]
[362380739,1748236209110,211.0,0.00017,2]
[362380740,1748236232472,-250.0,0.00018,2]
[362380741,1748236232482,-200.0,0.00018,2]
[362380742,1748236232492,-384.66,0.00018439,2]
[362380743,1748236232503,-1200.0,0.00018456,2]
[362380744,1748236232512,-18496.98002014,0.00018457,2]
[362380745,1748236232524,-2827.63958257,0.00018457,2]
[362380848,1748236238096,-2575.38039729,0.00018457,2]
[362380849,1748236238105,-220.68,0.00018497,2]
[362380850,1748236238115,-2782.0,0.00018498,2]
[362380851,1748236238124,-2585.42,0.00018501,2]
[362380852,1748236238133,-167.17,0.00018511,2]
[362380853,1748236238142,-200.0,0.00018534,2]
[362380854,1748236238152,-1000.0,0.00018548,2]
[362380855,1748236238161,-250.0,0.00018563,2]
[362380856,1748236238170,-200.0,0.00018631,2]
[362380857,1748236238180,-250.0,0.000187,2]
[362380858,1748236238189,-200.0,0.000187,2]
[362380859,1748236238198,-867.99,0.0001877,2]
[362380860,1748236238207,-200.0,0.00018776,2]
[362380861,1748236238216,-743.0,0.00018878,2]
[362380862,1748236238225,-1276.72,0.00018887,2]
[362380863,1748236238234,-1093.0,0.00018896,2]
[362380864,1748236238244,-1919.58,0.00018909,2]
[362380865,1748236238254,-151.0,0.00018999,2]
[362380866,1748236238263,-207.4,0.00018999,2]
[362380867,1748236238272,-694.38,0.00019,2]
[362380868,1748236238281,-694.38,0.00019,2]
[362380869,1748236238290,-694.38,0.00019,2]
[362380870,1748236238299,-694.38,0.00019,2]
[362380871,1748236238309,-694.38,0.00019,2]
[362380872,1748236238318,-350.0,0.00019,2]
[362380873,1748236238327,-30000.0,0.00019,2]
[362380874,1748236238336,-500.0,0.00019164,2]
[362380875,1748236238346,-153.302403,0.00019178,2]
[362380876,1748236238355,-153.302403,0.00019178,2]
[362380877,1748236238364,-153.302403,0.00019178,2]
[362380879,1748236238374,-160.967523,0.00019178,2]
[362380881,1748236238383,-159.690003,0.00019178,2]
[362380883,1748236238392,-158.412483,0.00019178,2]
[362380884,1748236238401,-163.522563,0.00019178,2]
[362380885,1748236238411,-166.077603,0.00019178,2]
[362380886,1748236238421,-158.412483,0.00019178,2]
[362380887,1748236238430,-176.32,0.00019188,2]
[362380888,1748236238440,-711.94461765,0.00019251,2]
[362380889,1748236238449,-151.0,0.00019339,2]
[362380890,1748236238461,-151.0,0.00019339,2]
[362380891,1748236238470,-151.0,0.00019339,2]
[362380892,1748236238480,-153.302403,0.00019369,2]
[362380893,1748236238489,-166.06,0.00019415,2]
[362380894,1748236238498,-323.240137,0.00019599,2]
[362380895,1748236238507,-77.90257804,0.00019643,2]
[362380896,1748236238519,-634.04203961,0.00019643,2]
[362380897,1748236238528,-971.038,0.00019671,2]
[362380898,1748236238537,-885.255,0.00019671,2]
[362380899,1748236238547,-4059.0,0.00019671,2]
[362380900,1748236238556,-6920.0,0.00019671,2]
[362380901,1748236238565,-152.0,0.00019676,3]
[362380902,1748236238574,-154.0,0.000197,2]
[362380903,1748236238583,-845.0,0.000197,2]
[362380904,1748236238592,-153.302403,0.00019726,2]
[362380905,1748236238601,-160.967523,0.00019726,2]
[362380906,1748236238610,-158.412483,0.00019726,2]
[362380907,1748236238619,-163.522563,0.00019726,2]
[362380908,1748236238628,-158.412483,0.00019726,2]
[362380909,1748236238638,-171.3615,0.00019779,2]
[362380910,1748236238648,-250.0,0.000198,2]
[362380911,1748236238657,-200.0,0.000198,2]
[362380912,1748236238666,-2147.96,0.000198,2]
[362380913,1748236238675,-2839.95935414,0.000198,2]
[362380914,1748236238684,-1982.0,0.000198,2]
[362380915,1748236238693,-5000.0,0.000198,2]
[362380916,1748236238702,-5000.0,0.000198,7]
[362380917,1748236238711,-2839.95935407,0.00019811,2]
[362380918,1748236238720,-2839.95935407,0.00019822,2]
[362380919,1748236238729,-2839.95935407,0.00019833,2]
[362380920,1748236238738,-200.0,0.0001984,2]
[362380921,1748236238747,-2839.95935407,0.00019844,2]
[362380922,1748236238756,-2839.95935407,0.00019856,2]
[362380923,1748236238765,-711.94461767,0.00019861,2]
[362380924,1748236238774,-2839.95935407,0.00019867,2]
[362380925,1748236238783,-240.0,0.00019868,2]
[362380926,1748236238792,-500.0,0.00019873,2]
[362380927,1748236238801,-500.0,0.00019873,2]
[362380928,1748236238810,-2839.95935407,0.00019878,2]
[362380929,1748236238819,-420.0,0.00019879,2]
[362380930,1748236238828,-150.0,0.00019879,2]
[362380931,1748236238837,-212.45507551,0.00019879,2]
[362380932,1748236238846,-150.0,0.00019879,2]
[362380933,1748236238855,-500.0,0.00019879,2]
[362380934,1748236238868,-500.0,0.00019879,2]
[362380935,1748236238880,-158.13039703,0.00019879,2]
[362380936,1748236238889,-150.0,0.00019879,2]
[362380937,1748236238898,-170.88170627,0.0001988,2]
[362380938,1748236238907,-2839.95935407,0.00019889,2]
[362380939,1748236238917,-414.16850172,0.00019895,2]
[362380940,1748236238926,-414.16850163,0.00019896,2]
[362380941,1748236238935,-414.16850163,0.00019896,2]
[362380942,1748236238944,-414.16850163,0.00019897,2]
[362380943,1748236238953,-414.16850163,0.00019897,2]
[362380944,1748236238962,-414.16850163,0.00019898,2]
[362380945,1748236238972,-414.16850163,0.00019898,2]
[362380946,1748236238982,-414.16850163,0.00019899,2]
[362380947,1748236238990,-153.302403,0.00019899,2]
[362380948,1748236238999,-153.302403,0.00019899,2]
[362380949,1748236239008,-153.302403,0.00019899,2]
[362380950,1748236239017,-438.42061135,0.00019899,2]
[362380951,1748236239026,-420.0,0.00019899,2]
[362380952,1748236239035,-342.86911917,0.00019899,2]
[362380953,1748236239044,-420.0,0.00019899,2]
[362380954,1748236239053,-425.54716039,0.00019899,2]
[362380955,1748236239062,-420.0,0.00019899,2]
[362380956,1748236239071,-436.96833602,0.00019899,2]
[362380957,1748236239080,-432.98333033,0.00019899,2]
[362380958,1748236239089,-420.0,0.00019899,2]
[362380959,1748236239099,-420.0,0.00019899,2]
[362380960,1748236239108,-420.0,0.00019899,2]
[362380961,1748236239117,-420.0,0.00019899,2]
[362380962,1748236239126,-441.26369032,0.00019899,2]
[362380963,1748236239135,-450.63840925,0.00019899,2]
[362380964,1748236239144,-420.0,0.00019899,2]
[362380965,1748236239153,-460.72516754,0.00019899,2]
[362380966,1748236239162,-433.72059028,0.00019899,2]
[362380967,1748236239171,-435.41877038,0.00019899,2]
[362380968,1748236239180,-420.0,0.00019899,2]
[362380969,1748236239189,-420.0,0.00019899,2]
[362380970,1748236239198,-500.0,0.00019899,2]
[362380971,1748236239207,-456.35941997,0.00019899,2]
[362380972,1748236239216,-561.78950863,0.00019899,2]
[362380973,1748236239225,-500.0,0.00019899,2]
[362380974,1748236239235,-420.0,0.00019899,2]
[362380975,1748236239244,-434.04335348,0.00019899,2]
[362380976,1748236239254,-420.0,0.00019899,2]
[362380977,1748236239262,-420.0,0.00019899,2]
[362380978,1748236239271,-502.3895125,0.00019899,2]
[362380979,1748236239280,-442.13225717,0.00019899,2]
[362380980,1748236239290,-460.81018687,0.00019899,2]
[362380981,1748236239298,-420.0,0.00019899,2]